[Event "Late-Titled-Tuesday-Blitz-March-26-2024"]
[Site "Chess.com"]
[Date "2024.03.26"]
[Round "8"]
[White "xakevicius91"]
[Black "GothamChess"]
[Result "0-1"]
[WhiteElo "2539"]
[BlackElo "2673"]
[TimeControl "180+1"]
[EndTime "15:29:19 PDT"]
[Termination "GothamChess won by resignation"]

1. e4 {[%clk 0:02:51]} 1... d5 {[%clk 0:02:59.5]} 2. exd5 {[%clk 0:02:50.5]}
2... Qxd5 {[%clk 0:03:00.4]} 3. Nc3 {[%clk 0:02:49.8]} 3... Qa5 {[%clk
0:03:00.7]} 4. d4 {[%clk 0:02:49]} 4... Nf6 {[%clk 0:03:01]} 5. Nf3 {[%clk
0:02:47]} 5... Bf5 {[%clk 0:03:01.6]} 6. Bd2 {[%clk 0:02:45.7]} 6... e6 {[%clk
0:03:01]} 7. Bc4 {[%clk 0:02:45.7]} 7... Bb4 {[%clk 0:03:00.6]} 8. a3 {[%clk
0:02:43.3]} 8... Bxc3 {[%clk 0:03:00.8]} 9. Bxc3 {[%clk 0:02:44.1]} 9... Qb6
{[%clk 0:03:01.3]} 10. Qe2 {[%clk 0:02:39.7]} 10... O-O {[%clk 0:02:51.8]} 11.
Nh4 {[%clk 0:02:10.5]} 11... Bg6 {[%clk 0:02:45.6]} 12. Nxg6 {[%clk 0:02:10.2]}
12... hxg6 {[%clk 0:02:46.5]} 13. O-O-O {[%clk 0:02:09.7]} 13... Nd5 {[%clk
0:02:34.9]} 14. Bxd5 {[%clk 0:02:07.2]} 14... exd5 {[%clk 0:02:35.1]} 15. h4
{[%clk 0:02:07]} 15... Qe6 {[%clk 0:02:29.3]} 16. Qd2 {[%clk 0:02:01.8]} 16...
Nd7 {[%clk 0:02:22.5]} 17. h5 {[%clk 0:01:58.5]} 17... Rfe8 {[%clk 0:01:58.6]}
18. Kb1 {[%clk 0:01:51.1]} 18... gxh5 {[%clk 0:01:49.2]} 19. Rxh5 {[%clk
0:01:47.3]} 19... Qe2 {[%clk 0:01:37.6]} 20. Rxd5 {[%clk 0:01:39.8]} 20... Nf6
{[%clk 0:01:08.4]} 21. Re5 {[%clk 0:01:27.5]} 21... Qxd2 {[%clk 0:00:44.9]} 22.
Rxd2 {[%clk 0:01:13.2]} 22... Ne4 {[%clk 0:00:29.4]} 23. Re2 {[%clk 0:01:07.6]}
23... Rxe5 {[%clk 0:00:27.3]} 24. dxe5 {[%clk 0:01:07.1]} 24... Nxc3+ {[%clk
0:00:28]} 25. bxc3 {[%clk 0:01:07.7]} 25... Kf8 {[%clk 0:00:27.3]} 26. f4 {[%clk
0:01:01.8]} 26... Ke7 {[%clk 0:00:25.6]} 27. Kc1 {[%clk 0:01:02.1]} 27... Rh8
{[%clk 0:00:23.1]} 28. Kd2 {[%clk 0:01:02]} 28... Rh1 {[%clk 0:00:23]} 29. Re3
{[%clk 0:00:47.4]} 29... Rg1 {[%clk 0:00:20.6]} 30. Rg3 {[%clk 0:00:42.5]} 30...
g6 {[%clk 0:00:20.6]} 31. Kd3 {[%clk 0:00:35.1]} 31... Ra1 {[%clk 0:00:20.2]}
32. Ke4 {[%clk 0:00:33.3]} 32... Rxa3 {[%clk 0:00:19.9]} 33. Rd3 {[%clk
0:00:33.4]} 33... Ra2 {[%clk 0:00:17.6]} 34. Rd2 {[%clk 0:00:32.6]} 34... Ra4+
{[%clk 0:00:18.3]} 35. Ke3 {[%clk 0:00:31.8]} 35... Rc4 {[%clk 0:00:18.1]} 36.
Kd3 {[%clk 0:00:29.4]} 36... Rxf4 {[%clk 0:00:17.6]} 37. Rd1 {[%clk 0:00:28.4]}
37... Rg4 {[%clk 0:00:17]} 38. Ra1 {[%clk 0:00:26.9]} 38... a6 {[%clk
0:00:15.1]} 39. Rb1 {[%clk 0:00:27.1]} 39... b5 {[%clk 0:00:15.8]} 40. Ra1
{[%clk 0:00:26.7]} 40... Ra4 {[%clk 0:00:15.3]} 41. Rh1 {[%clk 0:00:22.8]} 41...
Ke6 {[%clk 0:00:12.8]} 42. Rh7 {[%clk 0:00:22.3]} 42... Rg4 {[%clk 0:00:13.3]}
43. Rh8 {[%clk 0:00:20.4]} 43... c5 {[%clk 0:00:13.8]} 44. Re8+ {[%clk
0:00:19.5]} 44... Kd5 {[%clk 0:00:14.2]} 45. Ra8 {[%clk 0:00:19.4]} 45... Rg3+
{[%clk 0:00:14]} 46. Kd2 {[%clk 0:00:19.7]} 46... Rxg2+ {[%clk 0:00:14.7]} 47.
Kc1 {[%clk 0:00:20.2]} 47... Kxe5 {[%clk 0:00:12.1]} 48. Rxa6 {[%clk 0:00:20.4]}
48... Kd5 {[%clk 0:00:12.6]} 49. Rf6 {[%clk 0:00:20.1]} 49... Kc4 {[%clk
0:00:09.1]} 50. Rxf7 {[%clk 0:00:18.5]} 50... Kxc3 {[%clk 0:00:08.8]} 51. Rf3+
{[%clk 0:00:18.6]} 51... Kb4 {[%clk 0:00:09.5]} 52. Rf6 {[%clk 0:00:18.5]} 52...
g5 {[%clk 0:00:09.1]} 53. Kb2 {[%clk 0:00:18.3]} 53... g4 {[%clk 0:00:09.1]} 54.
Rg6 {[%clk 0:00:18.8]} 54... g3 {[%clk 0:00:08.8]} 55. Rg5 {[%clk 0:00:18.6]}
55... Kc4 {[%clk 0:00:09.2]} 56. Rg8 {[%clk 0:00:18]} 56... b4 {[%clk
0:00:09.3]} 57. Rg4+ {[%clk 0:00:14.5]} 57... Kb5 {[%clk 0:00:08.1]} 58. Kb3
{[%clk 0:00:15]} 58... Rg1 {[%clk 0:00:07.8]} 59. Kb2 {[%clk 0:00:14.1]} 59...
c4 {[%clk 0:00:07.6]} 60. Ka2 {[%clk 0:00:14.4]} 60... Rg2 {[%clk 0:00:06.5]}
61. Kb1 {[%clk 0:00:14.5]} 61... b3 {[%clk 0:00:06.8]} 62. cxb3 {[%clk
0:00:14.6]} 62... cxb3 {[%clk 0:00:07.7]} 63. Kc1 {[%clk 0:00:12.8]} 63... Kc5
{[%clk 0:00:08]} 64. Kb1 {[%clk 0:00:13.2]} 64... Kd5 {[%clk 0:00:08.6]} 65. Rg8
{[%clk 0:00:11.5]} 65... b2 {[%clk 0:00:07.7]} 66. Rg7 {[%clk 0:00:07.1]} 66...
Ke4 {[%clk 0:00:07.9]} 67. Rg8 {[%clk 0:00:07.3]} 67... Kf3 {[%clk 0:00:08.3]}
68. Rf8+ {[%clk 0:00:07.3]} 68... Ke3 {[%clk 0:00:08.2]} 69. Re8+ {[%clk
0:00:05.3]} 69... Kf2 {[%clk 0:00:05.7]} 70. Rf8+ {[%clk 0:00:05.1]} 70... Kg1
{[%clk 0:00:06]} 71. Rh8 {[%clk 0:00:04.3]} 71... Rf2 {[%clk 0:00:05.7]} 72. Rg8
{[%clk 0:00:03]} 72... g2 {[%clk 0:00:06.3]} 73. Rd8 {[%clk 0:00:03.1]} 73...
Kh2 {[%clk 0:00:05.8]} 0-1

[Event "Late-Titled-Tuesday-Blitz-March-26-2024"]
[Site "Chess.com"]
[Date "2024.03.26"]
[Round "8"]
[White "ahkashefi2800"]
[Black "vladislavkovalev"]
[Result "0-1"]
[WhiteElo "2615"]
[BlackElo "2884"]
[TimeControl "180+1"]
[EndTime "15:29:30 PDT"]
[Termination "vladislavkovalev won by checkmate"]

1. Nf3 {[%clk 0:02:58.4]} 1... Nf6 {[%clk 0:03:00.3]} 2. g3 {[%clk 0:02:57.3]}
2... d5 {[%clk 0:02:59]} 3. Bg2 {[%clk 0:02:57.3]} 3... e6 {[%clk 0:02:57.9]} 4.
O-O {[%clk 0:02:57.1]} 4... b6 {[%clk 0:02:58.4]} 5. b3 {[%clk 0:02:55.7]} 5...
Bb7 {[%clk 0:02:58.9]} 6. Bb2 {[%clk 0:02:56.1]} 6... Be7 {[%clk 0:02:57.8]} 7.
d3 {[%clk 0:02:56.5]} 7... c5 {[%clk 0:02:56.5]} 8. Nbd2 {[%clk 0:02:56.8]} 8...
O-O {[%clk 0:02:56]} 9. Re1 {[%clk 0:02:56.8]} 9... Nc6 {[%clk 0:02:49.8]} 10.
e4 {[%clk 0:02:56.4]} 10... Qc7 {[%clk 0:02:27.9]} 11. a4 {[%clk 0:02:52]} 11...
Rfd8 {[%clk 0:02:26.4]} 12. Qe2 {[%clk 0:02:50.4]} 12... dxe4 {[%clk 0:02:19.3]}
13. Nxe4 {[%clk 0:02:50.3]} 13... Nxe4 {[%clk 0:02:18.7]} 14. dxe4 {[%clk
0:02:50.1]} 14... Nd4 {[%clk 0:02:19.2]} 15. Nxd4 {[%clk 0:02:31]} 15... cxd4
{[%clk 0:02:20.1]} 16. Red1 {[%clk 0:02:15]} 16... e5 {[%clk 0:02:17.7]} 17. h4
{[%clk 0:02:10.5]} 17... Bb4 {[%clk 0:02:10.5]} 18. Rac1 {[%clk 0:02:07.7]}
18... Qc5 {[%clk 0:01:50.9]} 19. Qf3 {[%clk 0:02:04.1]} 19... Ba3 {[%clk
0:01:02.8]} 20. Bxa3 {[%clk 0:02:03.7]} 20... Qxa3 {[%clk 0:01:03.7]} 21. Bf1
{[%clk 0:02:04]} 21... Rac8 {[%clk 0:00:48.7]} 22. Bd3 {[%clk 0:02:02]} 22...
Rc3 {[%clk 0:00:38.7]} 23. Qf5 {[%clk 0:01:52.2]} 23... Qd6 {[%clk 0:00:35.8]}
24. Bc4 {[%clk 0:01:36.1]} 24... Qf6 {[%clk 0:00:35.9]} 25. Qxf6 {[%clk
0:01:35.7]} 25... gxf6 {[%clk 0:00:36.8]} 26. Bd3 {[%clk 0:01:34.6]} 26... a5
{[%clk 0:00:33.7]} 27. Rd2 {[%clk 0:01:31.3]} 27... Bc8 {[%clk 0:00:15.9]} 28.
Re1 {[%clk 0:01:30.7]} 28... Be6 {[%clk 0:00:12.3]} 29. Kg2 {[%clk 0:01:30.3]}
29... Rdc8 {[%clk 0:00:12.9]} 30. Ree2 {[%clk 0:01:30]} 30... R8c7 {[%clk
0:00:12.6]} 31. f3 {[%clk 0:01:30.3]} 31... Kf8 {[%clk 0:00:13.1]} 32. g4 {[%clk
0:01:30.4]} 32... h6 {[%clk 0:00:13.2]} 33. h5 {[%clk 0:01:30]} 33... Ke7 {[%clk
0:00:13.7]} 34. Kg3 {[%clk 0:01:30.4]} 34... Kd6 {[%clk 0:00:10.8]} 35. Rh2
{[%clk 0:01:30.5]} 35... Kc5 {[%clk 0:00:11.2]} 36. f4 {[%clk 0:01:30.4]} 36...
Kd6 {[%clk 0:00:06.2]} 37. f5 {[%clk 0:01:30.6]} 37... Bd7 {[%clk 0:00:05.7]}
38. Kf3 {[%clk 0:01:31]} 38... Bc6 {[%clk 0:00:05.2]} 39. Rhe2 {[%clk 0:01:28]}
39... Bb7 {[%clk 0:00:05.6]} 40. Rh2 {[%clk 0:01:27.5]} 40... Kc5 {[%clk
0:00:06.1]} 41. Rhe2 {[%clk 0:01:27.6]} 41... Kb4 {[%clk 0:00:06.8]} 42. Re1
{[%clk 0:01:26.2]} 42... Rc8 {[%clk 0:00:06.5]} 43. Kf2 {[%clk 0:01:21.9]} 43...
Ra8 {[%clk 0:00:07.2]} 44. Ree2 {[%clk 0:01:19.7]} 44... Ba6 {[%clk 0:00:07.8]}
45. Bxa6 {[%clk 0:00:53.3]} 45... Rxa6 {[%clk 0:00:08.7]} 46. Ke1 {[%clk
0:00:50.7]} 46... Ra7 {[%clk 0:00:09.1]} 47. Kd1 {[%clk 0:00:50.7]} 47... Rac7
{[%clk 0:00:09.7]} 48. Rg2 {[%clk 0:00:37.9]} 48... Re3 {[%clk 0:00:05.9]} 49.
Rde2 {[%clk 0:00:37.9]} 49... Rxe2 {[%clk 0:00:03.6]} 50. Rxe2 {[%clk
0:00:35.7]} 50... Rc3 {[%clk 0:00:04.3]} 51. Kd2 {[%clk 0:00:15]} 51... Rg3
{[%clk 0:00:04.6]} 52. Rh2 {[%clk 0:00:10.1]} 52... Ka3 {[%clk 0:00:04.7]} 53.
Rh4 {[%clk 0:00:05.7]} 53... Kb2 {[%clk 0:00:05]} 54. Rh2 {[%clk 0:00:03.8]}
54... Rc3 {[%clk 0:00:05.4]} 55. Kd1 {[%clk 0:00:03.1]} 55... Re3 {[%clk
0:00:06.1]} 56. Kd2 {[%clk 0:00:02.4]} 56... Rxe4 {[%clk 0:00:05.5]} 57. Kd3
{[%clk 0:00:02.9]} 57... Re3+ {[%clk 0:00:03.4]} 58. Kc4 {[%clk 0:00:03.3]}
58... Rc3+ {[%clk 0:00:04.2]} 59. Kb5 {[%clk 0:00:03.7]} 59... Rxc2 {[%clk
0:00:04]} 60. Rh3 {[%clk 0:00:03.9]} 60... e4 {[%clk 0:00:04.1]} 61. Kxb6 {[%clk
0:00:03.5]} 61... d3 {[%clk 0:00:04.7]} 62. b4 {[%clk 0:00:03.7]} 62... d2
{[%clk 0:00:03.7]} 63. Rh1 {[%clk 0:00:01.6]} 63... e3 {[%clk 0:00:04.2]} 64.
bxa5 {[%clk 0:00:01.4]} 64... e2 {[%clk 0:00:04.9]} 65. Rh2 {[%clk 0:00:01.8]}
65... d1=Q {[%clk 0:00:04.9]} 66. a6 {[%clk 0:00:02.7]} 66... Qd6+ {[%clk
0:00:05.1]} 67. Kb5 {[%clk 0:00:02.7]} 67... Rc5+ {[%clk 0:00:05.2]} 68. Kb4
{[%clk 0:00:02.1]} 68... Qd4# {[%clk 0:00:05.9]} 0-1

[Event "Late-Titled-Tuesday-Blitz-March-26-2024"]
[Site "Chess.com"]
[Date "2024.03.26"]
[Round "8"]
[White "GoltsevDmitry2000"]
[Black "Andrei_Skvortsov"]
[Result "1/2-1/2"]
[WhiteElo "2789"]
[BlackElo "2715"]
[TimeControl "180+1"]
[EndTime "15:29:42 PDT"]
[Termination "Game drawn by repetition"]

1. e4 {[%clk 0:01:41.6]} 1... d6 {[%clk 0:01:41.7]} 2. d4 {[%clk 0:01:41.7]}
2... Nf6 {[%clk 0:01:42.3]} 3. Nc3 {[%clk 0:01:41.7]} 3... e5 {[%clk 0:01:43]}
4. dxe5 {[%clk 0:01:41.7]} 4... dxe5 {[%clk 0:01:43.9]} 5. Qxd8+ {[%clk
0:01:42.6]} 5... Kxd8 {[%clk 0:01:44.6]} 6. Nf3 {[%clk 0:01:43.5]} 6... Bd6
{[%clk 0:01:42]} 7. Bc4 {[%clk 0:01:43.5]} 7... Ke8 {[%clk 0:01:41.4]} 8. Bg5
{[%clk 0:01:43]} 8... c6 {[%clk 0:01:37.1]} 9. a3 {[%clk 0:01:42.3]} 9... h6
{[%clk 0:01:30.8]} 10. Bh4 {[%clk 0:01:41.2]} 10... Bg4 {[%clk 0:01:27.2]} 11.
O-O-O {[%clk 0:01:40.1]} 11... Ke7 {[%clk 0:01:26]} 12. Bg3 {[%clk 0:01:34.4]}
12... Nbd7 {[%clk 0:01:25.3]} 13. Rd2 {[%clk 0:01:28.9]} 13... Bc7 {[%clk
0:01:24.4]} 14. Rhd1 {[%clk 0:01:25.8]} 14... Rhd8 {[%clk 0:01:20]} 15. Be2
{[%clk 0:01:12.6]} 15... Nh5 {[%clk 0:01:13.2]} 16. Nh4 {[%clk 0:01:01.5]} 16...
Bxe2 {[%clk 0:01:11.1]} 17. Nf5+ {[%clk 0:00:58.8]} 17... Kf8 {[%clk 0:00:59.9]}
18. Nxe2 {[%clk 0:00:55.2]} 18... Nxg3 {[%clk 0:00:55.6]} 19. hxg3 {[%clk
0:00:54.1]} 19... Nf6 {[%clk 0:00:55.1]} 20. Rxd8+ {[%clk 0:00:49.7]} 20... Rxd8
{[%clk 0:00:56]} 21. Rxd8+ {[%clk 0:00:49.5]} 21... Bxd8 {[%clk 0:00:55.2]} 22.
f3 {[%clk 0:00:50.4]} 22... Bc7 {[%clk 0:00:52]} 23. Kd2 {[%clk 0:00:47.8]}
23... g6 {[%clk 0:00:50.1]} 24. Ne3 {[%clk 0:00:41.8]} 24... Ke7 {[%clk
0:00:48.7]} 25. Nc1 {[%clk 0:00:41.8]} 25... b5 {[%clk 0:00:46.6]} 26. g4 {[%clk
0:00:41.2]} 26... h5 {[%clk 0:00:43.5]} 27. gxh5 {[%clk 0:00:40]} 27... Nxh5
{[%clk 0:00:42.7]} 28. Nd3 {[%clk 0:00:40.3]} 28... Kd6 {[%clk 0:00:42.1]} 29.
c4 {[%clk 0:00:37.1]} 29... a6 {[%clk 0:00:40]} 30. c5+ {[%clk 0:00:35.9]} 30...
Kd7 {[%clk 0:00:38.5]} 31. g4 {[%clk 0:00:31.1]} 31... Ng7 {[%clk 0:00:38.1]}
32. b4 {[%clk 0:00:22.7]} 32... Ne6 {[%clk 0:00:36.9]} 33. Nc2 {[%clk
0:00:21.1]} 33... f6 {[%clk 0:00:35.1]} 34. Ke3 {[%clk 0:00:21]} 34... a5 {[%clk
0:00:35.7]} 35. Nf2 {[%clk 0:00:19.8]} 35... axb4 {[%clk 0:00:35.6]} 36. axb4
{[%clk 0:00:20.7]} 36... Nf4 {[%clk 0:00:34.7]} 37. Nd3 {[%clk 0:00:20.3]} 37...
Ne6 {[%clk 0:00:35.3]} 38. Nf2 {[%clk 0:00:20.4]} 38... Ke7 {[%clk 0:00:35.8]}
39. Nd3 {[%clk 0:00:20.6]} 39... Kf7 {[%clk 0:00:35.9]} 40. Nf2 {[%clk
0:00:18.9]} 40... Bd8 {[%clk 0:00:36.2]} 41. Nh3 {[%clk 0:00:18.8]} 41... Bc7
{[%clk 0:00:35.8]} 42. Kd3 {[%clk 0:00:18.9]} 42... Bd8 {[%clk 0:00:33.6]} 43.
Ke3 {[%clk 0:00:19.2]} 43... Be7 {[%clk 0:00:33.4]} 44. f4 {[%clk 0:00:16.7]}
44... exf4+ {[%clk 0:00:33.2]} 45. Nxf4 {[%clk 0:00:17.6]} 45... Bd8 {[%clk
0:00:28.8]} 46. Nxe6 {[%clk 0:00:15.5]} 46... Kxe6 {[%clk 0:00:29.7]} 47. Nd4+
{[%clk 0:00:16.4]} 47... Kd7 {[%clk 0:00:30.1]} 48. e5 {[%clk 0:00:12.9]} 48...
fxe5 {[%clk 0:00:28.9]} 49. Nf3 {[%clk 0:00:13.4]} 49... Ke6 {[%clk 0:00:18.4]}
50. Ke4 {[%clk 0:00:13.8]} 50... Bf6 {[%clk 0:00:19]} 51. Ne1 {[%clk 0:00:14.1]}
51... Bd8 {[%clk 0:00:17.7]} 52. Nd3 {[%clk 0:00:14.2]} 52... Bc7 {[%clk
0:00:18.1]} 53. Nf2 {[%clk 0:00:13.4]} 53... Kf6 {[%clk 0:00:17.4]} 54. Nd3
{[%clk 0:00:12.7]} 54... Ke6 {[%clk 0:00:10.6]} 55. Ne1 {[%clk 0:00:13.1]} 55...
Bd8 {[%clk 0:00:10.5]} 56. Nf3 {[%clk 0:00:13.5]} 56... Bf6 {[%clk 0:00:10.8]}
57. Ne1 {[%clk 0:00:13.4]} 57... Bh4 {[%clk 0:00:11.1]} 58. Nd3 {[%clk
0:00:13.5]} 58... Bg3 {[%clk 0:00:11.1]} 59. Kf3 {[%clk 0:00:12.6]} 59... Bh2
{[%clk 0:00:08.8]} 60. Ke4 {[%clk 0:00:13.1]} 60... Bg3 {[%clk 0:00:06.9]} 61.
Kf3 {[%clk 0:00:13.1]} 61... Bh2 {[%clk 0:00:05.9]} 62. Ke4 {[%clk 0:00:13.4]}
62... Kf6 {[%clk 0:00:06.3]} 63. Ne1 {[%clk 0:00:10.6]} 63... Bf4 {[%clk
0:00:02.9]} 64. Nd3 {[%clk 0:00:11.3]} 64... Ke6 {[%clk 0:00:03.8]} 65. Nxf4+
{[%clk 0:00:10.4]} 65... exf4 {[%clk 0:00:04.7]} 66. Kxf4 {[%clk 0:00:11.3]}
66... Kf6 {[%clk 0:00:04.7]} 67. g5+ {[%clk 0:00:08.5]} 67... Kf7 {[%clk
0:00:05.2]} 68. Ke5 {[%clk 0:00:05.9]} 68... Ke7 {[%clk 0:00:05.5]} 69. Kf4
{[%clk 0:00:06.4]} 69... Kf7 {[%clk 0:00:04.8]} 70. Ke5 {[%clk 0:00:06.1]} 70...
Ke7 {[%clk 0:00:05.3]} 71. Kd4 {[%clk 0:00:06.6]} 71... Kd7 {[%clk 0:00:05.5]}
72. Ke5 {[%clk 0:00:06.4]} 72... Ke7 {[%clk 0:00:05.9]} 1/2-1/2

[Event "Late-Titled-Tuesday-Blitz-March-26-2024"]
[Site "Chess.com"]
[Date "2024.03.26"]
[Round "8"]
[White "tarno17"]
[Black "crazycheesecake"]
[Result "1/2-1/2"]
[WhiteElo "2179"]
[BlackElo "2024"]
[TimeControl "180+1"]
[EndTime "15:29:52 PDT"]
[Termination "Game drawn by repetition"]

1. e4 {[%clk 0:02:56.8]} 1... e5 {[%clk 0:02:58.8]} 2. Nf3 {[%clk 0:02:56.5]}
2... Nc6 {[%clk 0:02:58.3]} 3. Bb5 {[%clk 0:02:56.8]} 3... Nf6 {[%clk
0:02:58.2]} 4. O-O {[%clk 0:02:57.5]} 4... Nxe4 {[%clk 0:02:58.2]} 5. Re1 {[%clk
0:02:57.5]} 5... Nd6 {[%clk 0:02:58.4]} 6. Nxe5 {[%clk 0:02:57.8]} 6... Nxe5
{[%clk 0:02:58]} 7. Rxe5+ {[%clk 0:02:57.6]} 7... Be7 {[%clk 0:02:58.7]} 8. Nc3
{[%clk 0:02:45.6]} 8... Nxb5 {[%clk 0:02:57.5]} 9. Nxb5 {[%clk 0:02:43.5]} 9...
d6 {[%clk 0:02:57]} 10. Re1 {[%clk 0:02:42.2]} 10... O-O {[%clk 0:02:56.9]} 11.
d4 {[%clk 0:02:40.6]} 11... c6 {[%clk 0:02:54]} 12. Nc3 {[%clk 0:02:40.1]} 12...
d5 {[%clk 0:02:54]} 13. Bf4 {[%clk 0:02:39]} 13... Bd6 {[%clk 0:02:52.7]} 14.
Qf3 {[%clk 0:02:39.2]} 14... Qf6 {[%clk 0:02:44.7]} 15. Bxd6 {[%clk 0:02:38.5]}
15... Qxd6 {[%clk 0:02:45.1]} 16. Re3 {[%clk 0:02:35.5]} 16... Bd7 {[%clk
0:02:43.1]} 17. Rae1 {[%clk 0:02:35.1]} 17... Rae8 {[%clk 0:02:42.8]} 18. Rxe8
{[%clk 0:02:35.3]} 18... Bxe8 {[%clk 0:02:41]} 19. a3 {[%clk 0:02:21.4]} 19...
Bd7 {[%clk 0:02:39.6]} 20. h3 {[%clk 0:02:20]} 20... h6 {[%clk 0:02:36.7]} 21.
Nd1 {[%clk 0:02:17]} 21... g6 {[%clk 0:02:30]} 22. Re2 {[%clk 0:01:42.9]} 22...
Bf5 {[%clk 0:02:27.7]} 23. Ne3 {[%clk 0:01:39.9]} 23... Be4 {[%clk 0:02:25.6]}
24. Qg3 {[%clk 0:01:39.8]} 24... Qxg3 {[%clk 0:02:24.8]} 25. fxg3 {[%clk
0:01:40.7]} 25... Re8 {[%clk 0:02:24.1]} 26. Ng4 {[%clk 0:01:36.6]} 26... Kg7
{[%clk 0:02:00.1]} 27. Kf2 {[%clk 0:01:21.9]} 27... h5 {[%clk 0:01:45.7]} 28.
Ne3 {[%clk 0:01:12]} 28... Kf6 {[%clk 0:01:28.7]} 29. Nd1 {[%clk 0:01:05.6]}
29... Rd8 {[%clk 0:01:20]} 30. Nc3 {[%clk 0:01:04.7]} 30... Bf5 {[%clk
0:01:19.6]} 31. Kf3 {[%clk 0:01:05]} 31... b6 {[%clk 0:01:17.3]} 32. g4 {[%clk
0:01:02.8]} 32... hxg4+ {[%clk 0:01:16.9]} 33. hxg4 {[%clk 0:01:03.7]} 33... Bd7
{[%clk 0:01:16.3]} 34. Kg3 {[%clk 0:00:59.7]} 34... Be6 {[%clk 0:01:09.8]} 35.
Rf2+ {[%clk 0:00:54.7]} 35... Ke7 {[%clk 0:01:02.9]} 36. Ne2 {[%clk 0:00:55.1]}
36... c5 {[%clk 0:00:56.5]} 37. c3 {[%clk 0:00:53.6]} 37... g5 {[%clk
0:00:53.2]} 38. Rf3 {[%clk 0:00:43.3]} 38... Rh8 {[%clk 0:00:45.7]} 39. b4
{[%clk 0:00:33.5]} 39... cxb4 {[%clk 0:00:40.7]} 40. cxb4 {[%clk 0:00:33.6]}
40... Rh4 {[%clk 0:00:40.6]} 41. Rc3 {[%clk 0:00:34.2]} 41... Rxg4+ {[%clk
0:00:28.1]} 42. Kf2 {[%clk 0:00:29.2]} 42... Kd6 {[%clk 0:00:26.4]} 43. g3
{[%clk 0:00:25.9]} 43... Re4 {[%clk 0:00:25.3]} 44. a4 {[%clk 0:00:21.3]} 44...
Bg4 {[%clk 0:00:24.6]} 45. Nc1 {[%clk 0:00:16.4]} 45... Rxd4 {[%clk 0:00:23.3]}
46. Rb3 {[%clk 0:00:16.6]} 46... f5 {[%clk 0:00:18.3]} 47. a5 {[%clk 0:00:16.6]}
47... b5 {[%clk 0:00:17.6]} 48. a6 {[%clk 0:00:16.4]} 48... f4 {[%clk
0:00:16.7]} 49. gxf4 {[%clk 0:00:16.2]} 49... gxf4 {[%clk 0:00:16.5]} 50. Rc3
{[%clk 0:00:15.4]} 50... Rxb4 {[%clk 0:00:15.3]} 51. Nd3 {[%clk 0:00:15.8]}
51... Rc4 {[%clk 0:00:14.7]} 52. Rb3 {[%clk 0:00:15.2]} 52... Rc2+ {[%clk
0:00:11.1]} 53. Kg1 {[%clk 0:00:14.8]} 53... f3 {[%clk 0:00:06.5]} 54. Rxb5
{[%clk 0:00:13.8]} 54... Rd2 {[%clk 0:00:03.9]} 55. Nf4 {[%clk 0:00:13.1]} 55...
Bc8 {[%clk 0:00:03.5]} 56. Ra5 {[%clk 0:00:12.1]} 56... Rc2 {[%clk 0:00:02.9]}
57. Nd3 {[%clk 0:00:08.4]} 57... Rd2 {[%clk 0:00:01.9]} 58. Nf2 {[%clk
0:00:07.8]} 58... d4 {[%clk 0:00:02.2]} 59. Rg5 {[%clk 0:00:05.7]} 59... Re2
{[%clk 0:00:01.6]} 60. Rg6+ {[%clk 0:00:06.1]} 60... Kc5 {[%clk 0:00:01.9]} 61.
Rg7 {[%clk 0:00:06.1]} 61... Kc4 {[%clk 0:00:02.3]} 62. Rc7+ {[%clk 0:00:06.4]}
62... Kb3 {[%clk 0:00:02.5]} 63. Rxc8 {[%clk 0:00:06.8]} 63... Re1+ {[%clk
0:00:02.8]} 64. Kh2 {[%clk 0:00:06.6]} 64... Re2 {[%clk 0:00:03.1]} 65. Kg3
{[%clk 0:00:07.1]} 65... Re3 {[%clk 0:00:03.4]} 66. Rd8 {[%clk 0:00:06.2]} 66...
Re6 {[%clk 0:00:01.8]} 67. Rxd4 {[%clk 0:00:05.8]} 67... Rxa6 {[%clk 0:00:02.2]}
68. Kxf3 {[%clk 0:00:06.4]} 68... Rb6 {[%clk 0:00:02.2]} 69. Ne4 {[%clk
0:00:06.5]} 69... a5 {[%clk 0:00:02.4]} 70. Nc5+ {[%clk 0:00:06.3]} 70... Kc3
{[%clk 0:00:02.1]} 71. Rd8 {[%clk 0:00:02.8]} 71... Kc4 {[%clk 0:00:02.2]} 72.
Na4 {[%clk 0:00:02.3]} 72... Rb3+ {[%clk 0:00:02.2]} 73. Ke4 {[%clk 0:00:02.2]}
73... Kb5 {[%clk 0:00:02.6]} 74. Rb8+ {[%clk 0:00:01.1]} 74... Kxa4 {[%clk
0:00:02.6]} 75. Rd8 {[%clk 0:00:01.5]} 75... Rb4+ {[%clk 0:00:02.5]} 76. Kd3
{[%clk 0:00:02.1]} 76... Kb3 {[%clk 0:00:03.1]} 77. Kd2 {[%clk 0:00:02.2]} 77...
Kb2 {[%clk 0:00:03.7]} 78. Rc8 {[%clk 0:00:02.2]} 78... a4 {[%clk 0:00:04.1]}
79. Rc2+ {[%clk 0:00:02.8]} 79... Kb1 {[%clk 0:00:03.4]} 80. Rc1+ {[%clk
0:00:03.3]} 80... Ka2 {[%clk 0:00:03.7]} 81. Kc3 {[%clk 0:00:03.7]} 81... Rb3+
{[%clk 0:00:03.5]} 82. Kc2 {[%clk 0:00:04.1]} 82... Rb2+ {[%clk 0:00:03.5]} 83.
Kc3 {[%clk 0:00:04.7]} 83... a3 {[%clk 0:00:03.9]} 84. Rd1 {[%clk 0:00:03.9]}
84... Rh2 {[%clk 0:00:03.6]} 85. Rc1 {[%clk 0:00:02.9]} 85... Rh3+ {[%clk
0:00:04]} 86. Kc2 {[%clk 0:00:03.2]} 86... Rh2+ {[%clk 0:00:04.4]} 87. Kc3
{[%clk 0:00:03.7]} 87... Rh3+ {[%clk 0:00:05]} 88. Kc2 {[%clk 0:00:04]} 88...
Rh2+ {[%clk 0:00:05.4]} 89. Kc3 {[%clk 0:00:04.6]} 1/2-1/2